[Event "Masterklassen-Elit 2025"]
[Site "Uppsala, Sweden"]
[Date "2025.07.02"]
[Round "5.2"]
[White "Wiedenkeller, Michael"]
[Black "Carlsson, Ludvig"]
[Result "0-1"]
[TimeControl "90 min for 40 move + 30 min with an increment of 30 sec starting move 1"]
[WhiteTitle "IM"]
[BlackTitle "IM"]
[WhiteFideId "1700146"]
[BlackFideId "1727010"]
[WhiteElo "2384"]
[BlackElo "2379"]

1. c4 {[%clk 01:28:24]} {[%emt 00:02:34]} e5 {[%clk 01:30:50]} {[%emt
00:00:11]} 2. Nc3 {[%clk 01:28:40]} {[%emt 00:00:15]} d6 {[%clk 01:31:12]}
{[%emt 00:00:07]} 3. g3 {[%clk 01:25:43]} {[%emt 00:03:27]} f5 {[%clk
01:28:54]} {[%emt 00:02:48]} 4. Bg2 {[%clk 01:20:52]} {[%emt 00:05:21]} Nf6
{[%clk 01:29:15]} {[%emt 00:00:09]} 5. d3 {[%clk 01:21:07]} {[%emt 00:00:16]}
Be7 {[%clk 01:29:35]} {[%emt 00:00:09]} 6. e4 {[%clk 01:20:00]} {[%emt
00:01:38]} O-O {[%clk 01:27:49]} {[%emt 00:02:15]} 7. Nge2 {[%clk 01:18:02]}
{[%emt 00:02:28]} c6 {[%clk 01:20:09]} {[%emt 00:08:10]} 8. O-O {[%clk
01:02:51]} {[%emt 00:15:42]} Qe8 {[%clk 01:18:43]} {[%emt 00:01:55]} 9. exf5
{[%clk 00:54:42]} {[%emt 00:08:40]} Bxf5 {[%clk 01:16:18]} {[%emt 00:02:55]} 10.
Ne4 {[%clk 00:52:07]} {[%emt 00:03:05]} Nbd7 {[%clk 01:15:19]} {[%emt
00:01:29]} 11. N2c3 {[%clk 00:50:55]} {[%emt 00:01:42]} Kh8 {[%clk 01:08:01]}
{[%emt 00:07:48]} 12. h3 {[%clk 00:47:10]} {[%emt 00:04:16]} Qg6 {[%clk
00:57:33]} {[%emt 00:10:56]} 13. Qb3 {[%clk 00:39:31]} {[%emt 00:08:10]} Qh5
{[%clk 00:51:17]} {[%emt 00:06:46]} 14. Qd1 {[%clk 00:38:15]} {[%emt 00:01:46]}
Bg4 {[%clk 00:44:47]} {[%emt 00:07:00]} 15. hxg4 {[%clk 00:20:20]} {[%emt
00:18:26]} Nxg4 {[%clk 00:45:08]} {[%emt 00:00:08]} 16. Re1 {[%clk 00:20:41]}
{[%emt 00:00:09]} d5 {[%clk 00:43:18]} {[%emt 00:02:20]} 17. cxd5 {[%clk
00:09:31]} {[%emt 00:11:41]} Bc5 {[%clk 00:35:04]} {[%emt 00:08:44]} 18. Re2
{[%clk 00:09:22]} {[%emt 00:00:38]} Bxf2+ {[%clk 00:29:13]} {[%emt 00:06:21]}
19. Rxf2 {[%clk 00:05:15]} {[%emt 00:04:37]} Qh2+ {[%clk 00:28:40]} {[%emt
00:01:02]} 20. Kf1 {[%clk 00:05:44]} Nxf2 {[%clk 00:28:24]} {[%emt 00:00:49]}
21. Nxf2 {[%clk 00:06:12]} {[%emt 00:00:01]} Rxf2+ {[%clk 00:28:12]} {[%emt
00:00:42]} 22. Kxf2 {[%clk 00:06:41]} {[%emt 00:00:02]} Rf8+ {[%clk 00:28:33]}
{[%emt 00:00:08]} 23. Qf3 {[%clk 00:03:40]} {[%emt 00:03:31]} Rxf3+ {[%clk
00:28:50]} {[%emt 00:00:13]} 24. Kxf3 {[%clk 00:04:09]} {[%emt 00:00:02]} e4+
{[%clk 00:27:59]} {[%emt 00:01:20]} 25. Kf2 {[%clk 00:01:27]} {[%emt 00:03:13]}
Ne5 {[%clk 00:28:20]} 26. Nxe4 {[%clk 00:00:39]} {[%emt 00:01:27]} cxd5 {[%clk
00:28:08]} 27. Nc5 {[%clk 00:01:22]} {[%emt 00:00:58]} b6 {[%emt 00:02:16]} 28.
Bf4 Ng4+ {[%clk 00:26:47]} {[%emt 00:00:04]} 29. Kf3 {[%clk 00:01:40]} {[%emt
00:00:13]} Qh5 {[%clk 00:27:15]} {[%emt 00:00:02]} 30. Rh1 {[%clk 00:00:45]}
{[%emt 00:01:25]} Nh2+ {[%clk 00:27:07]} {[%emt 00:00:38]} 31. Kf2 {[%clk
00:01:15]} Ng4+ {[%clk 00:26:41]} {[%emt 00:00:56]} 32. Kf3 {[%clk 00:00:51]}
{[%emt 00:00:54]} Qf5 {[%clk 00:27:09]} {[%emt 00:00:02]} 33. Bh3 {[%clk
00:30:30]} {[%emt 00:00:51]} 0-1

[Event "Masterklassen-Elit 2025"]
[Site "Uppsala, Sweden"]
[Date "2025.07.02"]
[Round "5.3"]
[White "Andersson, Tommy"]
[Black "Ljung, Harald"]
[Result "1/2-1/2"]
[TimeControl "90 min for 40 move + 30 min with an increment of 30 sec starting move 1"]
[WhiteTitle "IM"]
[WhiteFideId "1703803"]
[BlackFideId "1738178"]
[WhiteElo "2348"]
[BlackElo "2194"]

1. e4 {[%clk 01:30:57]} {[%emt 00:00:02]} c5 {[%clk 01:30:54]} {[%emt
00:00:07]} 2. Nc3 {[%clk 01:31:23]} {[%emt 00:00:04]} Nc6 {[%clk 01:30:57]}
{[%emt 00:00:27]} 3. g3 {[%clk 01:31:45]} {[%emt 00:00:08]} g6 {[%clk
01:31:07]} {[%emt 00:00:20]} 4. Bg2 {[%clk 01:32:07]} {[%emt 00:00:07]} Bg7
{[%clk 01:31:31]} {[%emt 00:00:07]} 5. d3 {[%clk 01:32:32]} {[%emt 00:00:05]}
Nf6 {[%clk 01:31:13]} {[%emt 00:00:47]} 6. Be3 {[%clk 01:31:29]} {[%emt
00:01:33]} d6 {[%clk 01:30:51]} {[%emt 00:00:53]} 7. h3 {[%clk 01:31:50]}
{[%emt 00:00:09]} O-O {[%clk 01:31:13]} {[%emt 00:00:08]} 8. Nge2 {[%clk
01:24:22]} {[%emt 00:07:58]} Rb8 {[%clk 01:29:32]} {[%emt 00:02:12]} 9. d4
{[%clk 01:12:02]} {[%emt 00:12:50]} cxd4 {[%clk 01:25:47]} {[%emt 00:04:14]} 10.
Nxd4 {[%clk 01:12:24]} {[%emt 00:00:08]} Bd7 {[%clk 01:21:11]} {[%emt
00:05:06]} 11. O-O {[%clk 01:12:31]} {[%emt 00:00:22]} Ne5 {[%clk 01:13:24]}
{[%emt 00:08:18]} 12. Kh2 {[%clk 00:59:25]} {[%emt 00:13:36]} Nc4 {[%clk
01:01:00]} {[%emt 00:12:55]} 13. Bc1 {[%clk 00:48:53]} {[%emt 00:11:02]} Qb6
{[%clk 00:57:00]} {[%emt 00:04:30]} 14. Nb3 {[%clk 00:48:56]} {[%emt 00:00:27]}
a5 {[%clk 00:56:25]} {[%emt 00:01:05]} 15. Rb1 {[%clk 00:48:33]} {[%emt
00:00:53]} Rbc8 {[%clk 00:54:59]} {[%emt 00:01:55]} 16. Nd2 {[%clk 00:47:02]}
{[%emt 00:02:01]} h5 {[%clk 00:49:25]} {[%emt 00:06:04]} 17. Nxc4 {[%clk
00:43:21]} {[%emt 00:04:12]} Rxc4 {[%clk 00:49:49]} {[%emt 00:00:06]} 18. Be3
{[%clk 00:39:39]} {[%emt 00:04:12]} Qc7 {[%clk 00:47:54]} {[%emt 00:02:24]} 19.
Re1 {[%clk 00:36:21]} {[%emt 00:03:49]} h4 {[%clk 00:46:00]} {[%emt 00:02:24]}
20. Bf1 {[%clk 00:33:49]} {[%emt 00:03:03]} hxg3+ {[%clk 00:46:09]} {[%emt
00:00:20]} 21. fxg3 {[%clk 00:34:13]} {[%emt 00:00:06]} Rxc3 {[%clk 00:36:47]}
{[%emt 00:09:53]} 22. bxc3 {[%clk 00:34:24]} {[%emt 00:00:19]} Bc6 {[%clk
00:36:38]} {[%emt 00:00:38]} 23. Bb6 {[%clk 00:27:34]} {[%emt 00:07:19]} Qc8
{[%clk 00:36:40]} {[%emt 00:00:28]} 24. Bg2 {[%clk 00:26:16]} {[%emt 00:01:49]}
Qe6 {[%clk 00:37:01]} {[%emt 00:00:09]} 25. Bd4 {[%clk 00:26:09]} {[%emt
00:00:37]} Nd7 {[%clk 00:35:56]} {[%emt 00:01:35]} 26. a3 {[%clk 00:13:47]}
{[%emt 00:12:52]} Ne5 {[%clk 00:34:13]} {[%emt 00:02:13]} 27. Qe2 {[%clk
00:14:04]} {[%emt 00:00:13]} Rd8 {[%clk 00:26:25]} {[%emt 00:08:18]} 28. Rb3
{[%clk 00:11:00]} {[%emt 00:03:34]} Bf6 {[%clk 00:23:40]} {[%emt 00:03:15]} 29.
h4 {[%clk 00:11:10]} {[%emt 00:00:20]} Bg7 {[%clk 00:22:05]} {[%emt 00:02:05]}
30. Bh3 {[%clk 00:06:59]} {[%emt 00:04:41]} Qc4 {[%clk 00:21:52]} {[%emt
00:00:43]} 31. Qd1 {[%clk 00:04:31]} {[%emt 00:02:58]} Bf6 {[%clk 00:20:38]}
{[%emt 00:01:44]} 32. Bf1 {[%clk 00:04:16]} {[%emt 00:00:45]} Qe6 {[%clk
00:20:34]} {[%emt 00:00:34]} 33. Bh3 {[%clk 00:04:24]} {[%emt 00:00:22]} Qc4
{[%clk 00:20:59]} {[%emt 00:00:05]} 34. Bf1 {[%clk 00:02:14]} {[%emt 00:02:41]}
Qe6 {[%clk 00:21:20]} {[%emt 00:00:08]} 1/2-1/2

[Event "Masterklassen-Elit 2025"]
[Site "Uppsala, Sweden"]
[Date "2025.07.02"]
[Round "5.4"]
[White "Ostlund, Joar"]
[Black "Landgren, Andreas"]
[Result "1-0"]
[TimeControl "90 min for 40 move + 30 min with an increment of 30 sec starting move 1"]
[WhiteTitle "FM"]
[BlackTitle "FM"]
[WhiteFideId "1735020"]
[BlackFideId "1704311"]
[WhiteElo "2322"]
[BlackElo "2261"]

1. d4 {[%clk 01:29:36]} {[%emt 00:01:23]} Nf6 {[%clk 01:30:50]} {[%emt
00:00:10]} 2. Nf3 {[%clk 01:30:00]} {[%emt 00:00:06]} g6 {[%clk 01:31:10]}
{[%emt 00:00:11]} 3. c4 {[%clk 01:30:09]} {[%emt 00:00:20]} Bg7 {[%clk
01:31:34]} {[%emt 00:00:06]} 4. Nc3 {[%clk 01:30:25]} {[%emt 00:00:14]} d5
{[%clk 01:31:56]} {[%emt 00:00:08]} 5. cxd5 {[%clk 01:30:43]} {[%emt 00:00:12]}
Nxd5 {[%clk 01:32:19]} {[%emt 00:00:07]} 6. e4 {[%clk 01:31:01]} {[%emt
00:00:11]} Nxc3 {[%clk 01:32:42]} {[%emt 00:00:08]} 7. bxc3 {[%clk 01:31:21]}
{[%emt 00:00:10]} c5 {[%clk 01:33:06]} {[%emt 00:00:06]} 8. Be3 {[%clk
01:31:29]} {[%emt 00:00:22]} Qa5 {[%clk 01:32:19]} {[%emt 00:01:17]} 9. Qd2
{[%clk 01:31:48]} {[%emt 00:00:12]} O-O {[%clk 01:32:22]} {[%emt 00:00:27]} 10.
Rc1 {[%clk 01:32:03]} {[%emt 00:00:15]} Nd7 {[%clk 01:32:18]} {[%emt 00:00:33]}
11. d5 {[%clk 01:21:27]} {[%emt 00:11:07]} Nf6 {[%clk 01:11:05]} {[%emt
00:21:43]} 12. c4 {[%clk 01:16:55]} {[%emt 00:05:02]} Qxd2+ {[%clk 01:09:47]}
{[%emt 00:01:47]} 13. Nxd2 {[%clk 01:13:31]} {[%emt 00:03:54]} b6 {[%clk
01:09:26]} {[%emt 00:00:51]} 14. Be2 {[%clk 01:08:35]} {[%emt 00:05:26]} e6
{[%clk 01:01:00]} {[%emt 00:08:56]} 15. e5 {[%clk 00:47:45]} {[%emt 00:21:20]}
Ne8 {[%clk 00:41:56]} {[%emt 00:19:35]} 16. f4 {[%clk 00:42:04]} {[%emt
00:06:10]} f6 {[%clk 00:32:25]} {[%emt 00:10:01]} 17. Nf3 {[%clk 00:36:00]}
{[%emt 00:06:34]} Bb7 {[%clk 00:26:42]} {[%emt 00:06:13]} 18. Rd1 {[%clk
00:15:58]} {[%emt 00:20:32]} Nc7 {[%clk 00:19:57]} {[%emt 00:07:15]} 19. d6
{[%clk 00:14:34]} {[%emt 00:01:54]} Na6 {[%clk 00:19:57]} {[%emt 00:00:30]} 20.
O-O {[%clk 00:14:11]} {[%emt 00:00:53]} Rad8 {[%clk 00:18:26]} {[%emt
00:02:01]} 21. exf6 {[%clk 00:14:08]} {[%emt 00:00:33]} Bxf6 {[%clk 00:13:13]}
{[%emt 00:05:43]} 22. Ne5 {[%clk 00:14:27]} {[%emt 00:00:12]} Be4 {[%clk
00:08:10]} {[%emt 00:05:33]} 23. Bg4 {[%clk 00:14:21]} {[%emt 00:00:35]} Bf5
{[%clk 00:07:20]} {[%emt 00:01:20]} 24. Bf3 {[%clk 00:14:41]} {[%emt 00:00:10]}
Nb4 {[%clk 00:05:17]} {[%emt 00:02:33]} 25. g4 {[%clk 00:11:29]} {[%emt
00:03:42]} Bc2 {[%clk 00:04:19]} {[%emt 00:01:29]} 26. Rd2 {[%clk 00:11:44]}
{[%emt 00:00:15]} Bxe5 {[%clk 00:04:32]} {[%emt 00:00:17]} 27. fxe5 {[%clk
00:11:53]} {[%emt 00:00:20]} Bd3 {[%clk 00:04:38]} {[%emt 00:00:24]} 28. Be2
{[%clk 00:11:01]} {[%emt 00:01:23]} Rxf1+ {[%clk 00:03:57]} {[%emt 00:01:11]}
29. Kxf1 {[%clk 00:10:40]} {[%emt 00:00:51]} Bxe2+ {[%clk 00:02:52]} {[%emt
00:01:35]} 30. Rxe2 {[%clk 00:11:00]} {[%emt 00:00:10]} Nc6 {[%clk 00:01:35]}
{[%emt 00:01:47]} 31. Bg5 {[%clk 00:10:52]} {[%emt 00:00:37]} Rd7 {[%clk
00:01:26]} {[%emt 00:00:39]} 32. h4 {[%clk 00:09:46]} {[%emt 00:01:37]} Rf7+
{[%clk 00:01:30]} {[%emt 00:00:25]} 33. Kg2 {[%clk 00:08:22]} {[%emt 00:01:54]}
Nb8 {[%clk 00:01:10]} {[%emt 00:00:51]} 34. Bf6 {[%clk 00:06:00]} {[%emt
00:02:51]} h6 {[%clk 00:01:10]} {[%emt 00:00:31]} 35. Re3 {[%clk 00:05:36]}
{[%emt 00:00:54]} Nd7 {[%clk 00:01:20]} {[%emt 00:00:19]} 36. g5 {[%clk
00:01:59]} {[%emt 00:04:07]} h5 {[%clk 00:01:44]} {[%emt 00:00:06]} 37. Kf2
{[%clk 00:00:52]} {[%emt 00:01:38]} Nb8 {[%clk 00:01:28]} {[%emt 00:00:46]} 38.
Ke2 {[%clk 00:00:46]} {[%emt 00:00:35]} Nc6 {[%clk 00:01:28]} {[%emt 00:00:30]}
39. Rd3 {[%clk 00:00:48]} {[%emt 00:00:28]} Rd7 {[%clk 00:01:50]} {[%emt
00:00:08]} 40. Kd2 {[%clk 00:00:46]} {[%emt 00:00:32]} Kf7 {[%clk 00:01:41]}
{[%emt 00:00:39]} 41. Kc3 {[%clk 00:27:33]} {[%emt 00:03:43]} Ke8 {[%clk
00:28:18]} {[%emt 00:03:54]} 42. Kb3 {[%clk 00:27:10]} {[%emt 00:00:53]} Na5+
{[%clk 00:28:05]} {[%emt 00:00:43]} 43. Ka4 {[%clk 00:23:20]} {[%emt 00:04:20]}
Nxc4 {[%clk 00:26:41]} {[%emt 00:01:54]} 44. Kb5 {[%clk 00:23:26]} {[%emt
00:00:24]} Na5 {[%clk 00:24:25]} {[%emt 00:02:46]} 45. Be7 {[%clk 00:23:44]}
{[%emt 00:00:12]} Kf7 {[%clk 00:06:12]} {[%emt 00:18:43]} 46. Rf3+ {[%clk
00:23:43]} {[%emt 00:00:30]} Kg7 {[%clk 00:06:20]} {[%emt 00:00:23]} 47. Rf6
{[%clk 00:22:44]} {[%emt 00:01:29]} c4 {[%clk 00:06:01]} {[%emt 00:00:49]} 48.
Rxe6 {[%clk 00:22:13]} {[%emt 00:01:01]} c3 {[%clk 00:05:23]} {[%emt 00:01:08]}
49. Rf6 {[%clk 00:22:30]} {[%emt 00:00:13]} c2 {[%clk 00:04:20]} {[%emt
00:01:33]} 50. Rf1 {[%clk 00:22:54]} {[%emt 00:00:05]} a6+ {[%clk 00:04:48]}
{[%emt 00:00:04]} 51. Kxa6 {[%clk 00:17:52]} {[%emt 00:05:31]} Nc6 {[%clk
00:03:26]} {[%emt 00:01:52]} 52. e6 {[%clk 00:17:35]} {[%emt 00:00:47]} Rxe7
{[%clk 00:03:51]} {[%emt 00:00:05]} 53. dxe7 {[%clk 00:17:50]} {[%emt
00:00:16]} Nxe7 {[%clk 00:04:15]} {[%emt 00:00:06]} 54. Kxb6 {[%clk 00:15:32]}
{[%emt 00:02:48]} Nd5+ {[%clk 00:04:38]} {[%emt 00:00:07]} 55. Kb7 {[%clk
00:15:49]} {[%emt 00:00:12]} Kg8 {[%clk 00:04:13]} {[%emt 00:00:55]} 56. Rc1
{[%clk 00:15:58]} {[%emt 00:00:21]} 1-0

[Event "Masterklassen-Elit 2025"]
[Site "Uppsala, Sweden"]
[Date "2025.07.02"]
[Round "5.5"]
[White "Strom-Engdahl, Alexander"]
[Black "Lindberg, Bengt"]
[Result "0-1"]
[TimeControl "90 min for 40 move + 30 min with an increment of 30 sec starting move 1"]
[WhiteTitle "FM"]
[BlackTitle "IM"]
[WhiteFideId "1741586"]
[BlackFideId "1700359"]
[WhiteElo "2320"]
[BlackElo "2334"]

1. e4 {[%clk 01:30:02]} {[%emt 00:00:57]} c5 {[%clk 01:30:37]} {[%emt
00:00:22]} 2. Nf3 {[%clk 01:30:26]} {[%emt 00:00:07]} e6 {[%clk 01:30:48]}
{[%emt 00:00:19]} 3. d4 {[%clk 01:30:50]} {[%emt 00:00:05]} cxd4 {[%clk
01:31:07]} {[%emt 00:00:11]} 4. Nxd4 {[%clk 01:31:14]} {[%emt 00:00:07]} Nf6
{[%clk 01:30:56]} {[%emt 00:00:40]} 5. Nc3 {[%clk 01:30:03]} {[%emt 00:01:43]}
Nc6 {[%clk 01:30:42]} {[%emt 00:00:44]} 6. Ndb5 {[%clk 01:29:42]} {[%emt
00:00:50]} Bc5 {[%clk 01:29:22]} {[%emt 00:01:50]} 7. Nd6+ {[%clk 01:29:40]}
{[%emt 00:00:32]} Ke7 {[%clk 01:28:58]} {[%emt 00:00:53]} 8. Bf4 {[%clk
01:29:39]} {[%emt 00:00:33]} e5 {[%clk 01:27:02]} {[%emt 00:02:25]} 9. Nf5+
{[%clk 01:29:57]} {[%emt 00:00:13]} Kf8 {[%clk 01:27:06]} {[%emt 00:00:25]} 10.
Bg5 {[%clk 01:27:38]} {[%emt 00:02:48]} d6 {[%clk 01:21:40]} {[%emt 00:05:57]}
11. Bc4 {[%clk 01:19:01]} {[%emt 00:09:09]} h6 {[%clk 01:08:38]} {[%emt
00:13:31]} 12. Bxf6 {[%clk 01:16:06]} {[%emt 00:03:26]} Qxf6 {[%clk 01:08:54]}
{[%emt 00:00:13]} 13. Ne3 {[%clk 01:16:19]} {[%emt 00:00:17]} Be6 {[%clk
01:02:49]} {[%emt 00:06:34]} 14. Bb3 {[%clk 01:14:22]} {[%emt 00:02:28]} Kg8
{[%clk 00:54:19]} {[%emt 00:08:59]} 15. Qd2 {[%clk 01:12:30]} {[%emt 00:02:22]}
Kh7 {[%clk 00:53:55]} {[%emt 00:00:54]} 16. O-O-O {[%clk 01:12:12]} {[%emt
00:00:48]} Bb4 {[%clk 00:46:59]} {[%emt 00:07:26]} 17. Kb1 {[%clk 00:54:18]}
{[%emt 00:18:26]} Qg6 {[%clk 00:38:35]} {[%emt 00:08:52]} 18. Bxe6 {[%clk
00:50:22]} {[%emt 00:04:28]} fxe6 {[%clk 00:37:54]} {[%emt 00:01:10]} 19. a3
{[%clk 00:49:49]} {[%emt 00:01:03]} Bc5 {[%clk 00:36:47]} {[%emt 00:01:36]} 20.
h4 {[%clk 00:43:40]} {[%emt 00:06:40]} Rad8 {[%clk 00:33:41]} {[%emt 00:03:35]}
21. f3 {[%clk 00:38:27]} {[%emt 00:05:44]} Rhf8 {[%clk 00:30:09]} {[%emt
00:04:01]} 22. h5 {[%clk 00:36:17]} {[%emt 00:02:40]} Qe8 {[%clk 00:29:01]}
{[%emt 00:01:39]} 23. Qd3 {[%clk 00:27:39]} {[%emt 00:09:08]} Nd4 {[%clk
00:28:18]} {[%emt 00:01:12]} 24. Ne2 {[%clk 00:26:22]} {[%emt 00:01:49]} b5
{[%clk 00:27:16]} {[%emt 00:01:31]} 25. Nxd4 {[%clk 00:25:06]} {[%emt
00:01:46]} Bxd4 {[%clk 00:26:09]} {[%emt 00:01:36]} 26. c3 {[%clk 00:24:41]}
{[%emt 00:00:55]} Bc5 {[%clk 00:23:33]} {[%emt 00:03:05]} 27. Ng4 {[%clk
00:21:04]} {[%emt 00:04:08]} a5 {[%clk 00:23:34]} {[%emt 00:00:29]} 28. g3
{[%clk 00:21:13]} {[%emt 00:00:21]} b4 {[%clk 00:22:59]} {[%emt 00:01:05]} 29.
axb4 {[%clk 00:19:01]} axb4 {[%clk 00:23:24]} {[%emt 00:02:47]} 30. cxb4 {[%clk
00:18:20]} Bxb4 {[%clk 00:23:12]} {[%emt 00:01:54]} 31. f4 {[%clk 00:17:21]}
{[%emt 00:01:29]} Qa4 {[%clk 00:19:44]} {[%emt 00:03:56]} 32. Qc2 {[%clk
00:10:12]} {[%emt 00:07:40]} Qa5 {[%clk 00:19:51]} {[%emt 00:00:23]} 33. Qb3
{[%clk 00:09:48]} {[%emt 00:00:55]} Ra8 {[%clk 00:19:04]} {[%emt 00:01:17]} 34.
Ne3 {[%clk 00:08:09]} {[%emt 00:02:09]} Rfb8 {[%clk 00:07:39]} {[%emt
00:11:52]} 35. Nc4 {[%clk 00:08:17]} {[%emt 00:00:25]} Qa6 {[%clk 00:07:06]}
{[%emt 00:01:02]} 36. fxe5 {[%clk 00:06:45]} {[%emt 00:02:02]} Ba3 {[%clk
00:05:22]} {[%emt 00:02:14]} 37. Qc3 {[%clk 00:06:06]} {[%emt 00:01:09]} Bxb2
{[%clk 00:05:04]} {[%emt 00:00:49]} 38. Nxb2 {[%clk 00:06:10]} {[%emt
00:00:26]} Qa2+ {[%clk 00:05:26]} {[%emt 00:00:08]} 39. Kc2 {[%clk 00:06:17]}
{[%emt 00:00:23]} Rxb2+ {[%clk 00:05:37]} {[%emt 00:00:18]} 40. Qxb2 {[%clk
00:05:46]} {[%emt 00:01:02]} Rc8+ {[%clk 00:06:02]} {[%emt 00:00:05]} 41. Kd3
{[%clk 00:06:09]} {[%emt 00:00:07]} Qxb2 {[%clk 00:06:26]} {[%emt 00:00:06]} 42.
exd6 {[%clk 00:05:59]} {[%emt 00:00:40]} Rc3+ {[%clk 00:06:06]} {[%emt
00:00:49]} 43. Kd4 {[%clk 00:06:28]} {[%emt 00:00:01]} Rb3+ {[%clk 00:06:24]}
{[%emt 00:00:12]} 0-1